bitfinex/quotes_ETHUSD_20240607
["timestamp","ask_amount","ask_price","bid_price","bid_amount"]
[1717792252315,1.39285466,3677.6,3677.5,2.71918]
[1717792253840,3.0,3678.0,3677.5,2.71918]
[1717792254040,1.39285466,3677.9,3677.8,2.71901]
[1717792256837,3.58811487,3678.2,3677.8,2.71901]
[1717792257012,1.39285466,3678.1,3677.8,2.71901]
[1717792257213,3.58811487,3678.2,3677.3,2.2549]
[1717792257420,3.0,3678.2,3677.4,1.047437]
[1717792258441,3.0,3678.2,3678.0,2.71879]
[1717792258739,1.39285466,3678.1,3678.0,2.71879]
[1717792263671,3.76145466,3678.1,3677.7,2.71908]
[1717792268193,0.8,3677.9,3677.7,2.71908]
[1717792268483,1.39285466,3677.8,3677.7,2.71908]
[1717792273094,0.8,3678.2,3678.0,2.71886]
[1717792273270,1.39285466,3678.1,3678.0,2.71886]
[1717792273684,2.19285466,3678.1,3678.0,2.71886]
[1717792280006,1.39285466,3678.1,3678.0,2.71886]
[1717792281717,4.39285466,3678.1,3678.0,2.71886]
[1717792282287,1.39285466,3678.1,3678.0,2.71886]
[1717792282474,1.98089604,3678.1,3678.0,2.71886]
[1717792282662,4.98089604,3678.1,3678.0,2.71886]
[1717792283470,6.67040501,3678.1,3678.0,2.71886]
[1717792285201,4.98089604,3678.1,3678.0,2.71886]
[1717792285401,0.58804138,3678.3,3678.0,2.990746]
[1717792285604,1.6933567,3678.1,3678.0,3.540746]
[1717792285916,2.28139808,3678.6,3678.4,2.71857]
[1717792286071,0.58804138,3678.6,3678.4,2.71857]
[1717792286271,2.4933567,3678.7,3678.4,2.71857]
[1717792287311,1.6933567,3678.7,3678.4,2.71857]
[1717792287517,1.6933567,3678.7,3678.4,3.228467]
[1717792288012,2.4933567,3678.7,3678.4,3.228467]
[1717792288210,2.4933567,3678.7,3678.4,2.71857]
[1717792288374,0.8,3678.7,3678.4,2.71857]
[1717792290311,0.8,3678.5,3678.4,2.71857]
[1717792290614,2.19285466,3678.5,3678.4,2.71857]
[1717792291030,5.19285466,3678.5,3678.4,2.71857]
[1717792291173,7.06659138,3678.5,3678.0,2.71879]
[1717792291381,0.8,3678.1,3678.0,2.71879]
[1717792291690,2.19285466,3678.1,3678.0,2.71879]
[1717792292107,6.88547185,3678.1,3678.0,2.71879]
[1717792292307,5.7807961,3678.1,3678.0,2.71879]
[1717792292688,7.47341329,3678.1,3678.0,2.71879]
[1717792293076,10.53724009,3678.1,3677.6,2.7191]
[1717792293275,0.8,3677.7,3677.6,2.7191]
[1717792293472,0.8,3677.7,3676.6,2.71989]
[1717792293473,2.19285466,3677.7,3676.6,2.71989]
[1717792293736,0.8,3677.2,3677.1,2.71949]
[1717792294175,2.19285466,3677.2,3677.1,2.71949]
[1717792294782,1.69261719,3677.6,3677.1,2.71949]
[1717792294984,0.8,3677.4,3677.1,2.71949]
[1717792295179,2.19285466,3677.4,3677.1,2.71949]
[1717792297977,3.58813944,3677.6,3677.4,2.71926]
[1717792298218,2.7809941,3677.6,3677.4,2.71926]
[1717792298395,2.19285466,3677.6,3677.4,2.71926]
[1717792299220,5.19285466,3677.6,3677.4,2.71926]
[1717792299608,2.19285466,3677.6,3677.4,2.71926]
[1717792301422,1.39285466,3677.5,3677.4,2.71926]
[1717792301926,2.19285466,3677.5,3677.4,2.71926]
[1717792304728,2.19285466,3677.5,3677.0,2.71954]
[1717792305323,1.39285466,3677.5,3677.0,2.71954]
[1717792305531,2.19285466,3677.5,3677.0,2.71954]
[1717792306014,0.8,3677.3,3677.0,2.71954]
[1717792306729,1.39285466,3677.2,3677.0,2.71954]
[1717792309527,0.8,3677.1,3677.0,2.71954]
[1717792312624,2.19285466,3677.1,3677.0,2.71954]
[1717792312930,1.39285466,3677.1,3677.0,2.71954]
[1717792315735,3.0,3677.4,3677.0,2.991494]
[1717792315950,1.39285466,3677.3,3677.0,2.71954]
[1717792320949,3.58813055,3677.7,3677.3,2.71935]
[1717792321105,4.98098521,3677.7,3677.3,2.71935]
[1717792321764,0.8,3677.6,3677.3,2.71935]
[1717792322255,1.39285466,3677.6,3677.3,2.71935]
[1717792325363,4.38813055,3677.7,3677.3,2.71935]
[1717792325541,5.78098521,3677.7,3677.3,2.71935]
[1717792326125,5.19285466,3677.7,3677.3,2.71935]
[1717792326357,1.39285466,3677.7,3677.5,2.71918]
[1717792327666,4.38813055,3677.9,3677.7,2.71901]
[1717792327667,0.58813055,3677.9,3677.7,2.71901]
[1717792327973,1.69012438,3678.1,3677.7,2.71901]
[1717792327974,1.38813055,3678.1,3677.7,2.71901]
[1717792328188,2.78098521,3678.1,3677.7,2.71901]
[1717792330457,0.8,3678.0,3677.7,2.71901]
[1717792330823,1.98098521,3678.1,3677.7,3.218731]
[1717792331018,4.98098521,3678.1,3677.7,3.218731]
[1717792331251,5.78098521,3678.1,3677.7,3.218731]
[1717792331620,4.98098521,3678.1,3677.9,2.71887]
[1717792332079,1.39285466,3678.1,3677.9,2.71887]
[1717792335426,4.39285466,3678.1,3677.9,2.71887]
[1717792337268,3.0,3678.1,3677.9,2.71887]
[1717792337570,1.69012438,3678.3,3678.1,2.71879]
[1717792337943,2.49012438,3678.4,3678.1,2.71879]
[1717792338429,0.8,3678.4,3678.1,2.71879]
[1717792339139,5.28050036,3678.5,3678.1,2.71879]
[1717792339344,0.8,3678.4,3678.1,2.71879]
[1717792339871,1.38799443,3678.4,3678.1,2.71879]
[1717792340033,0.8,3678.4,3678.1,2.71879]
[1717792341042,1.38799508,3678.4,3678.1,2.71879]
[1717792341231,0.8,3678.2,3678.1,2.71879]
[1717792342947,5.28044558,3678.5,3678.1,2.71879]
[1717792343144,0.8,3678.4,3678.1,2.71879]
[1717792343432,1.39285466,3678.3,3678.1,2.71879]
[1717792343636,0.8,3678.2,3678.1,2.71879]
[1717792344756,3.58799854,3678.5,3678.1,2.71879]
[1717792344937,0.8,3678.5,3678.1,5.00759]
[1717792349908,0.8,3678.4,3678.1,5.00759]
[1717792351460,0.8,3678.5,3678.1,5.00759]
[1717792353662,0.8,3678.5,3678.1,2.71879]
[1717792354589,0.8,3678.3,3678.1,2.71879]
[1717792357766,0.8,3678.2,3678.1,2.71879]
[1717792358510,2.63165405,3678.2,3678.1,2.71879]
[1717792358670,8.09325405,3678.2,3676.9,2.3176]
[1717792359000,0.8,3677.8,3676.9,2.3176]
[1717792359332,1.39285466,3677.8,3677.0,2.3176]
[1717792359484,0.58799389,3678.1,3677.2,2.3176]
[1717792359668,5.78084855,3678.1,3677.2,2.3176]
[1717792359868,5.78084855,3678.1,3677.3,0.55]
[1717792360163,4.98084855,3678.1,3677.3,0.55]
[1717792360477,5.78084855,3678.1,3677.3,0.55]
[1717792360678,5.78084855,3678.1,3677.4,0.4251331]
[1717792361289,5.78084855,3678.1,3677.8,2.71894]
[1717792361867,5.19285466,3678.1,3677.8,2.71894]
[1717792363462,5.78084855,3678.1,3677.8,2.71894]
[1717792364203,4.98084855,3678.1,3677.8,2.71894]
[1717792365926,4.98088519,3678.1,3677.8,2.71894]
[1717792367462,4.39285466,3678.1,3677.8,2.71894]
[1717792367755,4.98088494,3678.1,3677.8,2.71894]
[1717792368127,0.58803028,3678.1,3677.9,2.3956]
[1717792368326,0.58803028,3678.1,3678.0,5.11446]
[1717792368555,1.69330466,3678.7,3678.6,2.71842]
[1717792368851,1.69330466,3679.1,3679.0,2.71812]
[1717792369071,1.39285466,3679.1,3679.0,2.71812]
[1717792369823,1.69330466,3679.2,3679.0,2.71812]
[1717792370026,1.39285466,3679.2,3679.0,2.71812]
[1717792370220,1.69330466,3679.3,3679.0,2.71812]
[1717792370737,1.69330466,3679.5,3679.2,2.71798]
[1717792370937,1.69330466,3679.9,3679.6,2.71768]
[1717792371156,1.39285466,3679.8,3679.6,2.71768]
[1717792374231,3.0,3680.1,3679.9,2.71745]
[1717792374434,1.29713498,3681.1,3679.9,2.71745]
[1717792374435,1.39285466,3680.0,3679.9,2.71745]
[1717792374665,3.58773944,3680.3,3679.9,2.71745]
[1717792374874,4.39285466,3680.3,3679.9,2.71745]
[1717792375195,1.39285466,3680.3,3679.9,2.71745]
[1717792375483,3.0,3680.6,3680.2,2.71721]
[1717792375631,1.39285466,3680.7,3680.5,2.71699]
[1717792378390,3.0,3681.3,3680.9,2.71672]
[1717792378538,1.39285466,3681.2,3680.9,2.71672]
[1717792378743,0.04691681,3681.6,3681.2,2.71645]
[1717792379059,0.8,3682.0,3681.2,2.71645]
[1717792379237,1.39285466,3681.9,3681.5,2.71624]
[1717792379851,2.3855,3682.5,3681.8,2.71598]
[1717792380052,1.39285466,3682.4,3681.8,2.71598]
[1717792380269,0.37783547,3682.3,3681.8,2.71598]
[1717792380519,1.39285466,3682.2,3681.8,2.71598]
[1717792381961,2.3855,3682.9,3682.1,2.71578]
[1717792382267,1.39285466,3682.8,3682.1,2.71578]
[1717792382582,1.39285466,3682.8,3681.2,3.26649]
[1717792382583,1.39285466,3682.8,3682.4,2.71557]
[1717792384906,0.29713498,3683.8,3682.7,2.71534]
[1717792384907,0.0468888,3683.7,3682.7,2.71534]
[1717792385091,1.39285466,3683.6,3682.7,2.71534]
[1717792385610,1.39285466,3683.6,3683.0,2.71513]
[1717792387413,1.39285466,3683.6,3683.3,2.71491]
[1717792387914,0.04690624,3684.0,3683.3,2.71491]
[1717792388143,1.39285466,3683.9,3683.3,2.71491]
[1717792388568,1.39285466,3683.9,3683.7,2.71465]
[1717792390208,1.39285466,3683.9,3682.5,2.3563]
[1717792390209,1.39285466,3683.9,3683.3,2.71494]
[1717792390368,0.13928547,3683.8,3683.3,2.71494]
[1717792390572,1.53214013,3683.8,3683.3,2.71494]
[1717792390786,1.39285466,3683.8,3683.6,2.71468]
[1717792390987,3.0,3684.2,3683.6,2.71468]
[1717792391310,1.39285466,3684.1,3683.6,2.71468]
[1717792401356,1.39285466,3684.1,3683.9,2.7145]
[1717792401850,2.71376,3685.0,3683.4,2.3053]
[1717792401995,1.39285466,3684.9,3684.2,2.71426]
[1717792403300,1.39285466,3684.9,3684.5,2.71404]
[1717792407517,3.58697981,3685.3,3684.5,2.71404]
[1717792407713,1.39285466,3685.2,3684.5,2.71404]
[1717792407917,0.44397581,3685.1,3684.5,2.71404]
[1717792408142,1.39285466,3685.0,3684.5,2.71404]
[1717792409202,0.5869804,3684.9,3684.5,2.71404]
[1717792409406,1.97983506,3684.9,3684.5,2.71404]
[1717792411615,0.04689036,3685.0,3684.5,2.71404]
[1717792411616,1.97983506,3684.8,3684.5,2.71404]
[1717792411823,0.20267254,3684.7,3684.5,2.71404]
[1717792412149,0.5869804,3684.6,3684.5,2.71404]
[1717792413147,0.5869804,3684.9,3684.8,2.71385]
[1717792413310,1.97983506,3686.1,3685.4,2.71334]
[1717792413511,0.5869804,3686.0,3685.4,2.71334]
[1717792413712,1.97983506,3685.9,3685.4,2.71334]
[1717792414011,0.5869804,3685.8,3685.4,2.71334]
[1717792414318,0.5869804,3685.7,3685.4,2.71334]
[1717792414542,0.5869804,3685.6,3685.4,2.71334]
[1717792414722,0.5869804,3685.5,3685.4,2.71334]
[1717792414913,0.5869804,3685.7,3685.4,2.71334]
[1717792415434,1.97983506,3685.6,3685.4,2.71334]
[1717792415637,0.5869804,3685.5,3685.4,2.71334]
[1717792416055,0.5869804,3685.5,3685.0,2.71363]
[1717792416056,1.97983506,3685.5,3685.0,2.71363]
[1717792416262,0.5869804,3685.4,3685.0,2.71363]
[1717792416545,0.5869804,3685.3,3685.0,2.71363]
[1717792416754,0.5869804,3685.2,3685.0,2.71363]
[1717792416910,0.5869804,3685.1,3685.0,2.71363]
[1717792417110,0.5869804,3685.1,3684.6,2.71393]
[1717792417111,1.39285466,3685.1,3684.6,2.71393]
[1717792417313,0.5869804,3685.0,3684.6,2.71393]
[1717792417528,0.5869804,3684.9,3684.6,2.71393]
[1717792417748,0.5869804,3684.8,3684.6,2.71393]
[1717792417941,0.5869804,3684.7,3684.6,2.71393]
[1717792418147,0.5869835,3684.7,3684.6,2.71393]
[1717792418523,0.5869835,3684.7,3683.8,2.4059]
[1717792418749,0.5869835,3684.6,3684.3,2.71421]
[1717792419116,0.5869835,3684.5,3684.3,2.71421]
[1717792419367,0.5869835,3684.8,3684.3,2.71421]
[1717792419520,1.97983816,3684.7,3684.3,2.71421]
[1717792419862,0.5869835,3684.6,3684.3,2.71421]
[1717792420014,0.5869835,3684.5,3684.3,2.71421]
[1717792420321,3.0,3685.0,3683.9,0.24059]
[1717792420322,1.39285466,3684.4,3683.9,2.71446]
[1717792420742,1.97987663,3684.4,3683.9,2.71446]
[1717792421043,0.58702197,3684.3,3683.9,2.71446]
[1717792421257,1.39285466,3684.2,3683.9,2.71446]
[1717792424969,1.39285466,3684.2,3683.5,2.71476]
[1717792425168,5.05366351,3684.2,3683.5,2.71476]
[1717792425347,5.64074737,3684.2,3683.5,2.71476]
[1717792425839,5.64074737,3684.2,3683.1,5.07104]
[1717792426469,5.02627,3684.1,3683.1,5.07104]
[1717792426775,4.39285466,3684.0,3683.1,5.07104]
[1717792426954,4.98001436,3684.0,3683.1,2.71504]
[1717792428881,6.98112368,3684.0,3683.1,2.71504]
[1717792429287,0.5871597,3683.9,3683.1,2.71504]
[1717792429485,1.39285466,3683.8,3683.1,2.71504]
[1717792431793,1.914,3683.7,3683.1,2.71504]
[1717792431967,1.39285466,3683.6,3683.1,2.71504]
[1717792432173,5.70502809,3683.6,3683.1,2.71504]
[1717792434385,4.98001436,3683.6,3683.1,2.71504]
[1717792434694,4.39285466,3683.6,3683.1,2.71504]
[1717792440662,3.0,3683.6,3683.3,2.71488]
[1717792440813,3.58718348,3684.0,3683.3,2.71488]
[1717792441009,1.39285466,3683.9,3683.3,2.71488]
[1717792441168,4.39285466,3683.9,3683.5,2.71474]
[1717792441573,3.0,3683.8,3683.5,2.71474]
[1717792441872,1.39285466,3683.8,3683.5,2.71474]
[1717792442085,3.0,3684.0,3683.7,2.71459]
[1717792442285,3.0,3684.1,3683.9,2.71444]
[1717792442689,1.39285466,3684.2,3683.9,2.71444]
[1717792445313,1.39285466,3684.1,3682.5,2.71554]
[1717792445478,1.39285466,3684.1,3683.4,2.71485]
[1717792445479,7.43,3684.0,3683.4,2.71485]
[1717792445675,1.39285466,3683.9,3683.4,2.71485]
[1717792446617,3.72495466,3683.9,3683.4,2.71485]
[1717792447207,3.0,3683.8,3683.4,2.71485]
[1717792447407,1.39285466,3683.7,3683.4,2.71485]
[1717792448720,1.39285466,3683.7,3683.0,2.71513]
[1717792459224,1.98003718,3683.7,3683.0,2.71513]
[1717792460039,1.39285466,3683.7,3683.0,2.71513]
[1717792462669,4.39285466,3683.7,3683.0,2.71513]
[1717792462855,1.39285466,3683.7,3683.0,2.71513]
[1717792463384,2.22881959,3683.7,3683.0,2.71513]
[1717792463531,4.39285466,3683.7,3683.0,2.71513]
[1717792463880,4.98003718,3683.7,3683.0,2.71513]
[1717792464031,1.39285466,3683.7,3683.2,2.71497]
[1717792464957,1.69460147,3683.5,3683.2,2.71497]
[1717792466049,3.58717238,3683.6,3683.2,2.71497]
[1717792466255,1.6955704,3683.5,3683.2,2.71497]
[1717792466458,1.6955704,3683.5,3683.2,3.223967]
[1717792466734,4.6955704,3683.6,3683.2,3.223967]
[1717792466932,1.6955704,3683.5,3683.2,3.223967]
[1717792467367,1.69618531,3683.5,3683.2,2.71497]
[1717792469339,1.69618531,3683.8,3683.5,2.7148]
[1717792471835,2.2832824,3684.1,3683.7,2.71466]
[1717792472044,1.69618531,3684.1,3683.8,0.503826]
[1717792472262,0.58709709,3684.3,3684.0,2.71444]
[1717792472263,1.69618531,3684.2,3684.0,2.71444]
[1717792472580,7.43,3684.4,3683.8,0.503826]
[1717792472880,0.5870057,3684.3,3683.8,0.503826]
[1717792473251,2.28319101,3684.3,3683.9,0.5542086]
[1717792473451,9.12618531,3684.4,3683.9,0.5542086]
[1717792474173,7.43,3684.4,3683.9,0.5542086]
[1717792474371,9.12618531,3684.4,3684.2,2.71425]
[1717792474548,1.69618531,3684.5,3684.2,2.71425]
[1717792475574,1.69618531,3684.6,3684.2,2.71425]
[1717792475771,3.08903997,3684.6,3684.2,2.71425]
[1717792477479,1.39285466,3684.6,3684.2,2.71425]
[1717792478140,1.69618531,3684.7,3684.5,2.71405]
[1717792478470,1.39285466,3684.7,3684.5,2.71405]
[1717792479952,0.797,3684.6,3684.5,2.71405]
[1717792481480,2.28318983,3684.9,3684.5,2.71405]
[1717792481660,0.797,3684.7,3684.5,2.71405]
[1717792483263,2.18985466,3684.7,3684.5,2.71405]
[1717792483454,1.39285466,3684.7,3684.5,2.71405]
[1717792483644,0.797,3684.6,3684.5,2.71405]
[1717792484040,1.39285466,3684.7,3684.5,2.71405]
[1717792484284,0.797,3684.6,3684.5,2.71405]
[1717792486984,1.39285466,3684.7,3684.5,2.71405]
[1717792487282,0.797,3684.6,3684.5,2.71405]
[1717792487846,1.69618531,3684.9,3684.5,5.323155]
[1717792488094,7.43,3685.0,3684.8,2.71385]
[1717792493104,0.797,3685.3,3685.1,2.7136]
[1717792494586,3.58688158,3685.5,3685.1,2.7136]
[1717792494892,0.797,3685.3,3685.1,2.7136]
[1717792495269,2.18985466,3685.3,3685.1,2.7136]
[1717792496454,5.18985466,3685.3,3685.1,2.7136]
[1717792496673,2.18985466,3685.3,3685.1,2.7136]
[1717792496990,2.18985466,3685.3,3684.5,5.323155]
[1717792497197,2.18985466,3685.3,3684.6,0.5323155]
[1717792497397,5.18985466,3685.3,3684.6,0.5323155]
[1717792498500,5.18985466,3685.3,3685.0,2.71365]
[1717792499071,2.18985466,3685.3,3685.0,2.71365]
[1717792499979,1.39285466,3685.3,3685.0,2.71365]
[1717792500502,2.18985466,3685.3,3685.0,2.71365]
[1717792500871,0.58688605,3685.4,3685.3,2.71348]
[1717792501073,0.58688605,3685.5,3685.3,2.71348]
[1717792501412,7.43,3685.6,3685.3,2.71348]
[1717792502600,0.797,3685.5,3685.3,2.71348]
[1717792503317,3.74585466,3685.4,3684.7,2.71385]
[1717792503475,3.74585466,3685.4,3683.9,2.4332]
[1717792503476,2.353,3684.7,3683.9,2.71444]
[1717792503664,0.797,3684.0,3683.9,2.71444]
[1717792504608,2.18985466,3684.0,3683.5,2.71475]
[1717792504828,0.797,3683.6,3683.5,2.71475]
[1717792504988,0.797,3683.6,3682.0,2.71584]
[1717792504989,2.18985466,3683.6,3683.0,2.7151]
[1717792505166,0.797,3683.3,3683.0,2.7151]
[1717792505365,1.39285466,3683.5,3683.0,2.7151]
[1717792505620,2.27818602,3684.2,3683.4,2.71486]
[1717792505621,1.6912888,3684.2,3683.4,2.71486]
[1717792505913,0.58689722,3684.3,3683.4,2.71486]
[1717792505914,2.86526826,3684.1,3683.4,2.71486]
[1717792506209,3.0,3684.0,3683.4,2.71486]
[1717792506407,1.39285466,3683.9,3683.4,2.71486]
[1717792510816,1.36646691,3683.9,3683.4,2.71486]
[1717792512522,0.13664669,3683.8,3683.0,2.71512]
[1717792512683,1.39285466,3683.7,3683.0,2.71512]
[1717792512871,7.41047957,3684.2,3683.3,2.71491]
[1717792513232,1.39285466,3684.1,3683.3,2.71491]
[1717792514101,1.39285466,3684.1,3683.3,5.06041]
[1717792514298,1.39285466,3684.1,3683.6,2.71471]
[1717792518710,3.0,3684.3,3683.9,2.7145]
[1717792518910,1.39285466,3684.2,3683.9,2.7145]
[1717792523843,3.0,3684.4,3684.2,2.71428]
[1717792524013,1.69473318,3684.6,3684.5,2.71407]
[1717792524221,9.12473318,3684.7,3684.5,2.71407]
[1717792524540,8.82285466,3684.7,3684.5,2.71407]
[1717792527940,9.61985466,3684.7,3684.5,2.71407]
[1717792528254,2.18985466,3684.7,3684.5,2.71407]
[1717792528760,1.39285466,3684.7,3684.5,2.71407]
[1717792530780,0.797,3684.6,3684.5,2.71407]
[1717792531499,0.07162154,3684.6,3684.5,2.71407]
[1717792531865,0.07162154,3684.6,3684.5,2.985477]
[1717792532151,0.797,3684.9,3684.8,2.71381]
[1717792532303,3.58694575,3685.2,3684.8,2.71381]
[1717792532642,0.797,3685.1,3684.8,2.71381]
[1717792532841,3.0,3685.3,3684.8,2.71381]
[1717792533017,0.797,3685.0,3684.8,2.71381]
[1717792534304,0.797,3685.1,3684.8,2.71381]
[1717792534529,4.39285466,3685.3,3684.8,2.71381]
[1717792534937,1.39285466,3685.3,3684.8,2.71381]
[1717792535139,0.797,3685.2,3684.8,2.71381]
[1717792535341,4.39285466,3685.3,3684.8,2.71381]
[1717792535540,0.797,3685.1,3684.8,2.71381]
[1717792536402,3.0,3685.3,3684.9,0.271381]
[1717792536608,2.43078198,3685.9,3684.5,2.682507]
[1717792536609,0.58690589,3685.6,3684.5,3.479507]
[1717792536824,1.39285466,3685.5,3684.5,3.479507]
[1717792537215,2.18985466,3685.5,3684.5,3.479507]
[1717792537906,3.0,3685.6,3685.2,2.71349]
[1717792538215,0.797,3685.4,3685.2,2.71349]
[1717792539032,3.0,3685.6,3685.4,2.71334]
[1717792539233,3.0,3685.6,3684.8,2.4099]
[1717792539234,0.797,3685.5,3684.8,2.4099]
[1717792540651,0.797,3685.4,3684.8,2.4099]
[1717792540967,3.0,3685.6,3684.8,2.4099]
[1717792541179,0.797,3685.4,3684.8,2.4099]
[1717792542732,0.797,3685.0,3683.8,2.4099]
[1717792542979,0.797,3685.0,3682.8,0.75]
[1717792542980,1.39285466,3684.9,3684.0,2.4099]
[1717792543599,1.39285466,3684.9,3684.1,0.797]
[1717792544083,0.07058514,3684.8,3684.2,2.3044]
[1717792544240,7.43,3685.1,3684.2,2.3044]
[1717792544435,0.07062618,3685.0,3684.3,0.31014]
[1717792545032,0.07062618,3685.0,3684.4,0.55]
[1717792546303,0.86762618,3685.0,3684.4,0.55]
[1717792546515,3.73915466,3684.9,3683.1,2.4616]
[1717792546712,3.73915466,3684.9,3683.4,0.797]
[1717792546713,0.797,3684.3,3683.4,0.797]
[1717792546915,0.797,3684.3,3683.3,2.4616]
[1717792547137,0.06995817,3684.2,3683.3,2.4616]
[1717792547437,0.06995817,3684.2,3683.3,3.2586]
[1717792547943,8.227,3684.4,3683.3,3.2586]
[1717792548125,0.06978573,3684.1,3683.4,0.32586]
[1717792548440,0.797,3684.2,3683.5,0.55]
[1717792548643,0.06993591,3684.0,3683.5,0.55]
[1717792548846,0.797,3684.2,3683.5,0.55]
[1717792548847,0.06997545,3684.1,3683.5,0.55]
[1717792549028,0.06989637,3683.9,3683.5,0.963446]
[1717792549238,0.06993591,3684.0,3683.5,0.963446]
[1717792549431,0.06985683,3683.8,3683.5,0.963446]
[1717792549731,0.069861,3683.7,3683.5,0.963446]
[1717792549928,0.797,3684.2,3683.6,0.3425046]
[1717792550149,0.797,3684.2,3683.5,0.55]
[1717792550330,7.43,3684.4,3683.9,0.797]
[1717792550331,0.06994317,3684.1,3683.9,0.797]
[1717792550511,7.43,3684.4,3683.9,3.2122]
[1717792550862,0.07020394,3684.0,3683.9,2.4152]
[1717792551044,7.43,3684.4,3683.9,2.73642]
[1717792551432,0.07003319,3684.3,3683.9,2.73642]
[1717792552042,0.797,3684.7,3683.9,2.73642]
[1717792552247,0.06991902,3684.2,3684.0,2.71444]
[1717792552449,2.18985466,3684.7,3683.9,2.73642]
[1717792552754,0.06997166,3684.6,3683.9,2.73642]
[1717792554316,0.797,3684.4,3684.0,2.71439]
[1717792554531,0.797,3684.4,3683.2,2.71496]
[1717792554532,0.06983012,3684.5,3684.3,2.71419]
[1717792554704,0.797,3684.4,3684.3,2.71419]
[1717792559135,0.86723671,3684.4,3684.3,2.71419]
[1717792561837,2.26009137,3684.4,3684.3,2.71419]
[1717792562022,3.26018081,3684.4,3684.3,2.71419]
[1717792562564,3.26018081,3684.4,3684.0,2.71442]
[1717792562871,0.797,3684.2,3684.0,2.71442]
[1717792563163,1.39285466,3684.1,3684.0,2.71442]
[1717792563542,1.46249043,3684.1,3684.0,2.71442]
[1717792564627,1.46249043,3684.1,3683.7,2.71464]
[1717792564840,0.797,3683.8,3683.7,2.71464]
[1717792565236,0.86558979,3683.8,3683.7,2.71464]
[1717792566528,0.06858979,3683.8,3683.7,2.71464]
[1717792566860,3.2694,3684.0,3683.7,2.71464]
[1717792567065,1.46132348,3683.9,3683.7,2.71464]
[1717792567365,0.06846882,3683.9,3683.7,2.71464]
[1717792567733,0.797,3684.2,3683.7,2.71464]
[1717792568043,1.39285466,3684.1,3683.7,2.71464]
[1717792568244,0.06849398,3684.0,3683.7,2.71464]
[1717792568966,0.06849398,3684.0,3683.7,2.986104]
[1717792569331,0.797,3684.4,3684.3,2.71416]
[1717792569534,2.18985466,3684.4,3684.3,2.71416]
[1717792570327,3.0,3684.6,3684.3,2.71416]
[1717792570674,1.39285466,3684.5,3684.3,2.71416]
[1717792573689,3.0,3684.6,3684.3,2.71416]
[1717792573853,4.3840481,3684.7,3684.5,2.714]
[1717792574049,3.06890002,3684.6,3684.5,2.714]
[1717792574255,0.06890002,3684.6,3684.5,2.714]
[1717792574601,0.797,3684.8,3684.5,2.714]
[1717792575089,0.06893956,3684.7,3684.5,2.714]
[1717792575266,0.797,3684.8,3684.5,2.714]
[1717792575462,0.06893956,3684.7,3684.5,2.714]
[1717792575774,0.797,3684.8,3684.5,2.714]
[1717792575983,0.06890002,3684.6,3684.5,2.714]
[1717792576501,0.797,3684.8,3684.5,2.714]
[1717792576655,1.39285466,3684.9,3684.7,2.71386]
[1717792576856,2.18985466,3684.9,3684.7,2.71386]
[1717792580693,2.77680586,3684.9,3684.7,2.71386]
[1717792581693,1.39285466,3684.9,3684.7,2.71386]
[1717792581896,2.18985466,3684.9,3684.7,2.71386]
[1717792583196,4.51045466,3684.9,3684.7,2.71386]
[1717792583416,5.09740586,3684.9,3684.7,2.71386]
[1717792584667,7.77562131,3684.9,3684.4,2.71412]
[1717792584876,0.797,3684.5,3684.4,2.71412]
[1717792585097,2.18985466,3684.5,3684.4,2.71412]
[1717792587009,1.39285466,3684.5,3684.4,2.71412]
[1717792589194,1.45946673,3684.5,3684.4,2.71412]
[1717792591873,3.15808024,3684.5,3684.4,2.71412]
[1717792592714,3.15961604,3684.5,3684.4,2.71412]
[1717792592873,1.45946673,3684.5,3684.4,2.71412]
[1717792600933,0.06661207,3684.5,3684.4,2.71412]
[1717792601394,0.797,3684.6,3684.4,2.71412]
[1717792601595,0.06607554,3684.5,3684.4,2.71412]
[1717792607546,1.69917418,3684.7,3684.4,2.71412]
[1717792607734,0.06605274,3684.5,3684.4,2.71412]
[1717792608055,3.09202884,3684.7,3684.4,2.71412]
[1717792608202,0.06605274,3684.5,3684.4,2.71412]
[1717792608733,3.09202884,3684.7,3684.4,2.71412]
[1717792608943,0.06605274,3684.5,3684.4,2.71412]
[1717792609115,3.09202884,3684.7,3684.4,2.71412]
[1717792609318,0.06609227,3684.6,3684.4,2.71412]
[1717792611255,1.76526645,3684.6,3684.4,2.71412]
[1717792613247,1.69917418,3684.5,3684.4,2.71412]
[1717792613624,0.06608187,3684.5,3684.4,2.71412]
[1717792613832,1.76731157,3684.5,3684.4,2.71412]
[1717792614066,1.7012297,3684.5,3684.4,2.71412]
[1717792614246,1.76726788,3684.5,3684.4,2.71412]
[1717792614924,0.06603818,3684.5,3684.4,2.71412]
[1717792615121,1.70152504,3684.5,3684.4,2.71412]
[1717792615361,1.76756322,3684.5,3684.4,2.71412]
[1717792617763,0.06603818,3684.5,3684.4,2.71412]
[1717792618065,1.76784975,3684.5,3684.4,2.71412]
[1717792618226,1.70181157,3684.5,3684.4,2.71412]
[1717792618424,0.06607767,3684.5,3684.4,2.71412]
[1717792618863,2.77681772,3684.7,3684.4,2.71412]
[1717792619069,0.06603398,3684.5,3684.4,2.71412]
[1717792619231,2.77681772,3684.7,3684.4,2.71412]
[1717792619432,0.06603398,3684.5,3684.4,2.71412]
[1717792619641,2.77681772,3684.7,3684.4,2.71412]
[1717792619845,0.06603398,3684.5,3684.4,2.71412]
[1717792620047,2.77681772,3684.7,3684.4,2.71412]
[1717792620256,0.06603398,3684.5,3684.4,2.71412]
[1717792620445,2.57235184,3684.6,3684.4,2.71412]
[1717792620778,1.44999704,3684.5,3684.4,2.71412]
[1717792621049,0.65301763,3684.5,3684.4,2.71412]
[1717792621690,0.06603398,3684.5,3684.4,2.71412]
[1717792622394,0.65301763,3684.5,3684.4,2.71412]